bitfinex/quotes_ETHUSD_20250604
["timestamp","ask_amount","ask_price","bid_price","bid_amount"]
[1749056726708,3.75167654,2651.2,2650.8,6.189]
[1749056727220,3.75167654,2651.2,2650.9,6.188]
[1749056727436,3.75167654,2651.2,2651.0,8.135]
[1749056727609,3.75167654,2651.2,2651.1,6.187]
[1749056728085,3.75167654,2651.2,2651.0,9.751]
[1749056728290,3.75167654,2651.2,2651.1,6.187]
[1749056728718,7.19167654,2651.2,2651.0,8.135]
[1749056729023,7.19167654,2651.2,2651.1,1.616]
[1749056730093,3.44,2651.2,2651.1,1.616]
[1749056732514,4.31184765,2651.2,2651.1,1.616]
[1749056732824,4.31184765,2651.2,2651.0,8.135]
[1749056732825,2.145,2651.1,2651.0,8.135]
[1749056733014,5.89667654,2651.1,2651.0,9.751]
[1749056733213,9.33667654,2651.1,2651.0,9.751]
[1749056733413,10.35752896,2651.1,2651.0,9.751]
[1749056736075,14.1092055,2651.1,2651.0,9.751]
[1749056736475,10.35752896,2651.1,2651.0,9.751]
[1749056744564,0.55,2650.7,2649.6,24.688321]
[1749056744895,7.19167654,2650.6,2649.7,15.927]
[1749056745191,3.44,2650.6,2649.8,14.43945]
[1749056745362,3.44,2650.6,2649.9,7.79]
[1749056745757,3.44,2650.6,2649.9,1.616]
[1749056746066,3.44,2650.6,2650.0,6.174]
[1749056746466,3.44,2650.8,2650.2,16.459337]
[1749056746666,3.44,2651.2,2650.3,10.0]
[1749056746857,3.75167654,2651.1,2650.4,6.178]
[1749056747454,3.75167654,2651.1,2650.5,9.752]
[1749056747957,3.75167654,2651.1,2650.6,1.616]
[1749056748157,3.75167654,2651.1,2650.0,10.0]
[1749056748386,3.75167654,2651.1,2650.2,10.0]
[1749056748591,3.75167654,2651.1,2650.1,11.789461]
[1749056748983,3.75167654,2651.1,2650.2,6.176]
[1749056749185,3.75167654,2651.1,2650.3,16.679211]
[1749056749392,3.75167654,2651.1,2650.4,10.0]
[1749056749905,3.75167654,2651.1,2650.5,6.174]
[1749056750497,3.44,2651.0,2650.5,6.174]
[1749056751101,3.75167654,2650.9,2650.5,6.174]
[1749056751724,3.75167654,2650.9,2650.6,6.172]
[1749056754966,3.44,2651.0,2650.6,6.172]
[1749056756113,7.19167654,2651.1,2650.6,6.172]
[1749056756312,3.44,2651.1,2650.6,6.172]
[1749056756629,1.5656,2651.5,2650.6,6.172]
[1749056756969,3.44,2651.6,2650.6,6.172]
[1749056756970,3.75167654,2651.4,2650.6,6.172]
[1749056757123,3.44,2651.6,2650.6,6.172]
[1749056757124,3.75167654,2651.2,2650.6,6.172]
[1749056757328,3.75167654,2651.0,2650.6,6.172]
[1749056757529,3.75167654,2651.0,2650.7,9.744]
[1749056758051,3.75167654,2651.0,2650.8,1.609]
[1749056759183,3.75167654,2651.0,2650.8,7.784]
[1749056760272,5.24717654,2651.2,2650.8,7.784]
[1749056760478,3.75167654,2651.2,2650.8,7.784]
[1749056762502,3.75167654,2651.4,2650.8,7.784]
[1749056763388,3.75167654,2651.2,2650.8,7.784]
[1749056765900,4.9901,2651.6,2650.9,6.169]
[1749056765901,3.75167654,2651.0,2650.9,6.169]
[1749056766097,3.75167654,2651.0,2650.8,1.609]
[1749056766325,3.75167654,2651.0,2650.8,7.778]
[1749056767439,3.75167654,2651.0,2650.9,8.135]
[1749056768195,7.19167654,2651.0,2650.9,8.135]
[1749056772637,7.19167654,2651.0,2650.9,9.744]
[1749056772838,8.06786419,2651.0,2650.9,9.744]
[1749056773312,8.06786419,2651.0,2650.9,1.609]
[1749056773637,1.9933,2650.8,2649.2,0.3767]
[1749056773822,3.75167654,2650.3,2649.4,9.041458]
[1749056774025,1.4433,2650.8,2649.3,30.0]
[1749056774026,3.75167654,2650.1,2649.3,30.0]
[1749056774218,3.75167654,2650.1,2649.2,8.457226]
[1749056774416,3.75167654,2650.1,2649.3,6.17]
[1749056774642,3.75167654,2650.1,2649.4,6.17]
[1749056775022,3.75167654,2650.1,2649.5,2.450956]
[1749056775221,3.75167654,2650.1,2649.6,7.364998]
[1749056775416,3.75167654,2650.1,2649.6,4.881998]
[1749056775615,3.75167654,2650.1,2649.6,3.017076]
[1749056775848,3.75167654,2650.1,2649.6,10.0]
[1749056776320,3.44,2650.2,2649.6,6.926143]
[1749056777239,3.44,2650.2,2649.6,6.282143]
[1749056777410,3.44,2650.2,2649.7,9.745]
[1749056777803,3.44,2650.2,2649.9,10.0]
[1749056778006,3.75167654,2650.3,2650.0,6.17]
[1749056778309,3.75167654,2650.1,2650.0,6.17]
[1749056778509,1.5182,2650.2,2650.0,6.17]
[1749056778730,5.26987654,2650.2,2650.0,6.17]
[1749056779646,5.26987654,2650.2,2649.7,9.745]
[1749056779833,5.26987654,2650.2,2649.8,6.17]
[1749056782363,3.44,2650.4,2649.9,10.0]
[1749056782946,3.44,2650.5,2649.9,10.0]
[1749056783259,3.75167654,2650.4,2649.9,10.0]
[1749056784175,3.75167654,2650.2,2649.7,9.745]
[1749056784355,3.75167654,2650.2,2650.0,6.17]
[1749056785161,3.75167654,2650.4,2650.0,6.17]
[1749056785868,3.75167654,2650.4,2649.7,9.745]
[1749056786030,3.75167654,2650.2,2649.8,6.17]
[1749056787175,3.75167654,2650.4,2649.8,6.17]
[1749056788663,3.44,2650.5,2649.8,6.17]
[1749056789117,3.75167654,2650.4,2649.8,6.17]
[1749056789408,3.75167654,2650.4,2649.9,9.744]
[1749056789906,3.75167654,2650.2,2649.9,1.607]
[1749056790074,4.12684419,2650.2,2649.9,1.607]
[1749056790276,3.75167654,2650.2,2649.9,1.607]
[1749056790611,3.75167654,2650.4,2650.0,6.17]
[1749056795040,3.44,2650.3,2650.0,6.17]
[1749056795528,3.44,2650.3,2650.1,6.17]
[1749056797492,3.44,2650.3,2650.2,8.137]
[1749056797834,3.44,2650.3,2650.2,14.307]
[1749056798493,3.44,2650.3,2650.2,8.137]
[1749056798717,3.44,2650.3,2650.2,14.307]
[1749056802048,3.44,2650.3,2650.2,15.914]
[1749056802746,4.15916765,2650.3,2650.2,15.914]
[1749056803873,5.64086765,2650.3,2650.2,9.744]
[1749056804042,6.19086765,2650.3,2650.2,9.744]
[1749056805134,3.44,2650.3,2650.2,9.744]
[1749056806647,5.24437654,2650.6,2650.2,9.744]
[1749056806648,3.75167654,2650.4,2650.2,9.744]
[1749056809229,3.75167654,2650.4,2650.3,6.17]
[1749056809625,4.30167654,2650.4,2650.3,1.607]
[1749056809828,5.86497654,2650.4,2650.3,1.607]
[1749056810059,6.45147419,2650.4,2650.3,1.607]
[1749056810433,9.89147419,2650.4,2650.3,1.607]
[1749056810636,25.89147419,2650.4,2650.3,1.607]
[1749056811662,4.02649765,2650.4,2650.3,1.607]
[1749056811826,3.44,2650.4,2650.3,1.607]
[1749056812026,7.19167654,2650.4,2650.3,1.607]
[1749056812222,7.19167654,2650.4,2650.3,7.777]
[1749056817048,9.29527654,2650.4,2650.3,7.777]
[1749056817274,9.29527654,2650.4,2650.3,1.606]
[1749056817480,10.22480419,2650.4,2650.3,1.606]
[1749056820936,10.22480419,2650.4,2650.3,7.776]
[1749056821551,6.47312765,2650.4,2650.3,7.776]
[1749056821754,10.22480419,2650.4,2650.3,7.776]
[1749056821933,10.22480419,2650.4,2649.0,2.26498613]
[1749056822138,0.55,2650.3,2649.1,1.606]
[1749056822339,0.55,2650.3,2649.2,31.987938]
[1749056822555,0.55,2650.3,2649.2,21.987938]
[1749056822756,0.55,2650.3,2649.2,20.628838]
[1749056823279,0.55,2650.3,2649.2,18.862274]
[1749056823462,0.55,2650.3,2649.4,10.0]
[1749056823786,0.55,2650.3,2649.3,6.17]
[1749056824547,8.74527654,2650.4,2649.5,10.0]
[1749056824760,8.74527654,2650.4,2649.7,10.0]
[1749056825060,8.74527654,2650.4,2649.1,3.87088119]
[1749056825061,3.44,2650.3,2649.8,7.776]
[1749056825260,3.44,2650.3,2649.9,1.606]
[1749056825660,4.31452765,2650.3,2649.9,1.606]
[1749056827590,4.31452765,2650.3,2650.0,8.138]
[1749056827750,4.31452765,2650.3,2650.1,6.17]
[1749056830378,3.44,2650.2,2650.1,6.17]
[1749056833390,7.19167654,2650.2,2650.1,6.17]
[1749056833690,7.19167654,2650.2,2650.1,6.169]
[1749056834063,7.19167654,2650.2,2650.0,8.138]
[1749056834264,7.91084419,2650.2,2650.1,1.606]
[1749056834466,8.46084419,2650.2,2650.1,7.775]
[1749056834679,8.46084419,2650.2,2650.1,1.606]
[1749056835192,9.99624419,2650.2,2650.1,1.606]
[1749056835992,6.24456765,2650.2,2650.1,1.606]
[1749056836192,9.99624419,2650.2,2650.1,1.606]
[1749056839010,9.99624419,2650.2,2650.0,8.138]
[1749056839011,13.74792073,2650.2,2650.0,8.138]
[1749056839207,1.6128,2649.8,2648.4,10.0]
[1749056839369,1.6128,2649.8,2648.7,16.0]
[1749056839370,3.75167654,2649.3,2648.7,16.0]
[1749056839569,7.19167654,2649.3,2648.8,6.169]
[1749056839873,3.44,2649.3,2648.8,6.169]
[1749056840069,3.44,2649.3,2648.9,10.0]
[1749056840572,3.44,2649.3,2649.0,6.169]
[1749056842902,3.44,2649.3,2649.1,8.91125]
[1749056844066,3.44,2650.0,2649.2,2.71083254]
[1749056844271,5.29187654,2650.2,2649.3,30.0]
[1749056844272,3.44,2650.1,2649.3,30.0]
[1749056844482,3.44,2650.1,2649.1,32.26489275]
[1749056844699,3.44,2650.1,2649.2,30.0]
[1749056844904,3.75167654,2650.2,2649.3,23.14168]
[1749056845479,3.75167654,2650.2,2649.2,30.0]
[1749056845899,3.75167654,2650.2,2649.2,32.26482066]
[1749056846080,3.75167654,2650.2,2649.3,29.9949]
[1749056846280,3.75167654,2650.2,2649.3,27.4749]
[1749056846515,3.75167654,2650.2,2649.3,25.562801]
[1749056846913,3.75167654,2650.3,2649.4,19.732211]
[1749056847116,1.4686,2650.5,2649.4,19.732211]
[1749056847117,1.4686,2650.5,2649.6,24.161767]
[1749056847319,3.75167654,2650.7,2649.6,24.161767]
[1749056847483,3.75167654,2650.5,2649.7,9.744]
[1749056848180,3.75167654,2650.1,2649.7,9.744]
[1749056848387,3.75167654,2649.9,2649.7,9.744]
[1749056848586,4.27901419,2649.9,2649.7,9.744]
[1749056849188,4.27901419,2649.9,2649.8,6.169]
[1749056849791,3.75167654,2649.9,2649.8,6.169]
[1749056851717,3.75167654,2649.9,2649.7,8.138]
[1749056851901,3.75167654,2649.9,2649.8,1.606]
[1749056852990,2.0085,2649.8,2649.7,8.138]
[1749056853189,2.95968531,2649.8,2649.7,9.744]
[1749056856826,5.21017654,2649.8,2649.7,9.744]
[1749056857608,5.76017654,2649.8,2649.7,15.913]
[1749056857920,2.0085,2649.8,2649.7,15.913]
[1749056859238,2.0085,2649.8,2649.7,9.744]
[1749056859447,2.0085,2649.8,2649.7,15.913]
[1749056859603,2.95968531,2649.8,2649.7,15.913]
[1749056861259,2.95968531,2649.8,2649.7,9.744]
[1749056861465,2.1055,2649.6,2649.5,6.169]
[1749056861747,5.85717654,2649.6,2649.5,7.775]
[1749056862042,6.88201273,2649.6,2649.5,1.606]
[1749056862243,6.88201273,2649.6,2649.5,7.775]
[1749056864446,6.88201273,2649.6,2649.5,1.606]
[1749056864801,4.77651273,2649.6,2649.5,1.606]
[1749056865793,4.77651273,2649.6,2649.5,7.775]
[1749056865946,8.21651273,2649.6,2649.5,7.775]
[1749056866369,1.4648,2649.5,2648.2,0.81300382]
[1749056866551,3.75167654,2649.2,2648.4,15.103224]
[1749056866750,7.19167654,2649.2,2648.4,15.103224]
[1749056866960,7.19167654,2649.2,2648.7,10.0]
[1749056867251,7.19167654,2649.2,2648.6,2.004892]
[1749056867568,7.19167654,2649.2,2648.7,8.139]
[1749056868465,7.19167654,2649.2,2648.8,6.169]
[1749056868668,7.19167654,2649.2,2648.9,1.606]
[1749056869590,7.14167654,2649.2,2648.9,1.606]
[1749056869888,3.44,2649.2,2648.9,1.606]
[1749056870092,3.44,2649.2,2649.0,28.192099]
[1749056870586,3.44,2649.2,2649.0,27.4915]
[1749056870793,3.44,2649.2,2649.0,26.3885]
[1749056870979,3.44,2649.2,2649.0,11.387305]
[1749056871992,3.44,2649.8,2649.0,11.387305]
[1749056872901,3.75167654,2649.7,2649.0,11.387305]
[1749056873603,3.75167654,2649.7,2649.0,8.932247]
[1749056875911,3.44,2649.6,2649.0,8.932247]
[1749056877174,3.44,2649.6,2649.0,0.84627801]
[1749056877369,3.44,2649.6,2648.9,11.606]
[1749056877620,3.44,2649.6,2649.1,24.648599]
[1749056877802,3.44,2649.6,2649.2,10.0]
[1749056878006,3.44,2649.6,2649.2,2.109799]
[1749056879706,3.44,2649.9,2649.2,2.109799]
[1749056880193,3.44,2649.9,2649.2,4.37460006]
[1749056880374,3.44,2649.9,2649.2,2.109799]
[1749056880978,3.44,2650.1,2649.3,30.0]
[1749056881440,3.44,2650.1,2649.2,30.0]
[1749056881565,3.44,2650.1,2649.3,0.3767]
[1749056881771,3.44,2650.1,2649.2,30.0]
[1749056882000,7.19167654,2650.1,2649.2,30.0]
[1749056882184,7.19167654,2650.1,2649.1,30.0]
[1749056882600,8.67327654,2650.1,2649.1,30.0]
[1749056883010,3.75167654,2649.9,2649.1,30.0]
[1749056883208,3.75167654,2649.9,2649.4,0.66666667]
[1749056883416,3.75167654,2649.9,2649.5,7.773]
[1749056883632,3.75167654,2649.9,2649.6,10.0]
[1749056883843,8.67327654,2650.1,2649.6,10.0]
[1749056885941,8.67327654,2650.1,2649.7,6.168]
[1749056886624,8.67327654,2650.1,2649.8,8.138]
[1749056887598,3.75167654,2649.9,2649.8,8.138]
[1749056888103,5.25477654,2649.9,2649.8,15.91]
[1749056888304,6.12425419,2649.9,2649.8,15.91]
[1749056888505,6.12425419,2649.9,2649.8,9.743]
[1749056889056,6.12425419,2649.9,2649.8,15.91]
[1749056889622,9.56425419,2649.9,2649.8,9.743]
[1749056889814,9.56425419,2649.9,2649.8,15.91]
[1749056890218,13.86593073,2649.9,2649.8,9.743]
[1749056891026,13.86593073,2649.9,2649.8,1.605]
[1749056891231,2.0126,2649.5,2649.4,0.66666667]
[1749056891390,5.76427654,2649.5,2649.4,10.40966667]
[1749056891934,5.76427654,2649.5,2649.4,8.80466667]
[1749056892137,5.76427654,2649.5,2649.4,10.40966667]
[1749056892442,2.0402,2649.4,2648.2,4.33851]
[1749056892596,3.75167654,2648.5,2648.1,16.02]
[1749056892930,3.75167654,2648.5,2648.2,6.167]
[1749056893337,3.75167654,2648.5,2648.3,6.167]
[1749056893539,3.75167654,2648.5,2648.1,0.02]
[1749056893695,3.75167654,2648.3,2648.1,0.02]
[1749056894045,3.75167654,2648.3,2648.2,6.168]
[1749056894617,3.75167654,2648.5,2648.2,6.168]
[1749056895050,3.44,2648.7,2648.3,2.838422]
[1749056895258,3.44,2648.7,2648.3,10.0]
[1749056895451,3.44,2648.7,2648.3,7.656263]
[1749056895630,7.19167654,2648.7,2648.2,6.168]
[1749056895834,3.75167654,2648.5,2648.2,6.168]
[1749056897428,7.19167654,2648.7,2648.3,9.745]
[1749056897634,3.44,2648.7,2648.3,9.745]
[1749056898029,3.75167654,2649.0,2648.4,20.922092]
[1749056898420,3.75167654,2649.0,2648.4,18.275765]
[1749056899958,1.38659307,2649.8,2648.5,2.26539167]
[1749056899959,1.5055,2649.4,2648.5,2.26539167]
[1749056900127,5.25717654,2649.4,2648.6,22.125053]
[1749056900326,5.25717654,2649.4,2648.8,15.647859]
[1749056900550,3.75167654,2649.2,2648.9,7.773]
[1749056900860,1.5055,2649.4,2648.9,1.605]
[1749056900861,3.75167654,2649.0,2648.9,1.605]
[1749056901027,3.75167654,2649.0,2648.9,7.773]
[1749056901639,5.15827654,2649.0,2648.9,7.773]
[1749056901857,0.55,2649.7,2648.9,7.773]
[1749056901858,5.15827654,2649.4,2648.9,7.773]
[1749056908772,5.15827654,2649.4,2649.0,1.604]
[1749056908930,5.15827654,2649.4,2649.1,1.604]
[1749056909134,3.44,2649.3,2649.1,1.604]
[1749056909373,1.4866,2649.9,2649.2,30.0]
[1749056909573,3.44,2650.1,2649.2,30.0]
[1749056909574,7.19167654,2650.1,2649.2,30.0]
[1749056909777,3.44,2650.1,2649.4,40.0]
[1749056910069,3.44,2650.1,2649.4,30.0]
[1749056910268,1.4866,2650.5,2649.5,30.0]
[1749056910832,3.75167654,2650.4,2649.5,30.0]
[1749056911250,1.4866,2650.5,2649.5,30.0]
[1749056913543,1.4866,2650.5,2649.4,30.0]
[1749056915264,1.4866,2650.5,2649.6,22.828888]
[1749056916170,3.44,2650.4,2649.6,22.828888]
[1749056917051,3.44,2650.4,2649.6,13.636174]
[1749056917271,3.44,2650.4,2649.6,11.737174]
[1749056917452,3.44,2650.4,2649.7,22.998]
[1749056917648,3.44,2650.4,2649.7,12.998]
[1749056918686,3.44,2650.4,2649.9,4.279911]
[1749056918869,3.44,2650.4,2650.0,6.166]
[1749056922396,4.924,2650.8,2650.1,30.0]
[1749056922573,12.01922167,2650.8,2650.2,7.769]
[1749056923291,4.924,2650.8,2650.3,16.150986]
[1749056923589,3.44,2650.8,2650.3,16.150986]
[1749056923789,3.44,2650.8,2649.9,16.0]
[1749056923992,1.4196,2650.7,2650.0,7.769]
[1749056924305,1.4196,2650.7,2650.2,10.0]
[1749056924858,1.4196,2650.7,2650.3,7.769]
[1749056925091,2.61708217,2650.7,2650.4,7.769]
[1749056925864,2.61708217,2650.7,2650.4,1.604]
[1749056926082,7.09522167,2650.5,2650.4,1.604]
[1749056926289,7.09522167,2650.5,2650.4,7.769]
[1749056927695,7.09522167,2650.5,2650.4,15.906]
[1749056927857,10.53522167,2650.5,2650.4,15.906]
[1749056929895,3.44,2650.5,2650.4,15.906]
[1749056933971,3.44,2650.6,2650.4,15.906]
[1749056938694,3.44,2650.6,2650.4,9.741]
[1749056939010,3.44,2650.6,2650.5,6.163]
[1749056947209,3.44,2650.6,2650.4,8.137]
[1749056947608,3.44,2650.6,2650.5,7.766]
[1749056949989,4.927,2650.6,2650.4,8.137]
[1749056950195,4.927,2650.6,2650.5,7.766]
[1749056951515,4.85784796,2650.6,2650.5,1.603]
[1749056951720,6.28574796,2650.6,2650.5,1.603]
[1749056954106,6.28574796,2650.6,2650.5,7.766]
[1749056955302,0.55,2650.5,2649.6,17.128818]
[1749056955508,3.75147965,2650.3,2649.7,9.739]
[1749056955825,3.75147965,2650.1,2649.7,9.739]
[1749056956028,3.75147965,2649.9,2649.8,1.603]
[1749056956232,7.19147965,2649.9,2649.8,1.603]
[1749056956409,9.42782762,2649.9,2649.8,7.765]
[1749056956790,8.70867965,2649.9,2649.8,7.765]
[1749056957526,8.70867965,2649.9,2649.8,7.766]
[1749056960495,8.70867965,2649.9,2649.8,1.603]
[1749056960701,8.70867965,2649.9,2649.8,7.766]
[1749056960928,8.70867965,2649.9,2649.8,1.603]
[1749056961100,8.70867965,2649.9,2649.8,7.766]
[1749056963230,4.9572,2649.9,2649.8,7.766]
[1749056964452,4.9572,2649.9,2649.8,1.603]
[1749056964611,4.9572,2649.9,2649.8,7.766]
[1749056965067,5.82806797,2649.9,2649.8,1.603]
[1749056965206,6.37806797,2649.9,2649.8,1.603]
[1749056965535,6.37806797,2649.9,2649.8,7.766]
[1749056965738,10.12954762,2649.9,2649.8,1.603]
[1749056965938,1.9731,2649.8,2649.7,8.136]
[1749056966115,1.4231,2649.7,2649.3,0.66666667]
[1749056966315,4.30147965,2649.4,2649.3,0.66666667]
[1749056966619,9.16457965,2649.4,2649.3,6.82966667]
[1749056967416,9.16457965,2649.4,2649.3,16.57066667]
[1749056969844,9.16457965,2649.4,2649.3,8.80466667]
[1749056970053,10.08103762,2649.4,2649.3,8.139]
[1749056970211,0.55,2649.1,2648.1,0.02]
[1749056970543,5.22877965,2648.5,2648.2,7.765]
[1749056970742,3.75147965,2648.5,2648.2,7.765]
[1749056971429,3.75147965,2648.5,2648.2,1.602]
[1749056971610,3.75147965,2648.5,2648.3,6.163]
[1749056974352,0.55,2649.1,2648.3,6.163]
[1749056974353,3.75147965,2649.1,2648.3,6.163]
[1749056974849,3.75147965,2648.7,2648.3,6.163]
[1749056975036,3.75147965,2648.5,2648.4,6.164]
[1749056975710,3.75147965,2648.5,2647.5,10.74779758]
[1749056975915,3.75147965,2648.5,2647.7,10.0]
[1749056976111,5.23447965,2648.7,2647.9,10.0]
[1749056976315,5.23447965,2648.7,2648.0,10.0]
[1749056976516,5.23447965,2648.7,2647.8,19.480622]
[1749056976764,5.23447965,2648.7,2647.7,23.676876]
[1749056976949,5.23447965,2648.7,2647.8,6.165]
[1749056977116,5.23447965,2648.7,2647.9,23.82893]
[1749056977323,1.483,2648.7,2647.9,11.928397]
[1749056977559,4.923,2648.7,2648.0,9.744]
[1749056977759,4.923,2648.7,2648.1,6.165]
[1749056982118,4.923,2648.7,2648.0,9.744]
[1749056982324,7.1052418,2648.6,2648.0,9.744]
[1749056982565,7.1052418,2648.6,2648.1,6.165]
[1749056983974,1.375,2648.5,2648.2,7.768]
[1749056984265,3.44,2648.4,2648.3,1.603]
[1749056984475,3.44,2648.4,2648.3,7.768]
[1749056985767,3.44,2648.4,2648.3,1.603]
[1749056985768,4.63202418,2648.4,2648.3,1.603]
[1749056985952,0.55,2648.2,2648.0,8.141]
[1749056986126,9.0835418,2648.1,2648.0,8.141]
[1749056986328,0.55,2648.0,2647.8,3.256]
[1749056986567,0.55,2648.0,2647.9,9.745]
[1749056987053,2.0312,2648.0,2647.9,9.745]
[1749056987652,9.1364418,2648.0,2647.9,9.745]
[1749056988030,9.1364418,2648.0,2647.9,8.142]
[1749056988381,9.1364418,2648.0,2647.9,9.745]
[1749056988562,10.39408598,2648.0,2647.9,9.745]
[1749056989293,3.44,2648.1,2647.9,9.745]
[1749056989443,4.8768,2648.1,2647.9,9.745]
[1749056990181,3.44,2648.1,2647.9,9.745]
[1749056991355,3.99,2648.1,2648.0,6.166]
[1749056995343,3.44,2648.1,2648.0,6.166]
[1749056995743,3.44,2648.1,2647.9,8.142]
[1749056995947,1.4611,2648.2,2648.0,7.769]
[1749056996442,1.4611,2648.2,2648.1,1.603]
[1749056996443,2.0111,2648.2,2648.1,1.603]
[1749056996642,9.1163418,2648.2,2648.1,7.769]
[1749056997143,9.1163418,2648.2,2647.1,0.02]
[1749056997144,0.55,2647.8,2647.1,0.02]
[1749056997348,1.4271,2647.7,2647.2,7.769]
[1749056997663,1.4271,2647.7,2647.3,8.144]
[1749056999843,1.4062,2648.0,2647.3,8.144]
[1749057000052,0.55,2647.9,2647.3,8.144]
[1749057002554,0.55,2647.7,2647.4,6.167]
[1749057002784,0.55,2647.7,2647.3,8.144]
[1749057002949,0.55,2647.7,2647.5,7.769]
[1749057003492,1.4233,2648.0,2647.5,7.769]
[1749057004046,11.32,2648.2,2647.5,7.769]
[1749057004250,12.7433,2648.2,2647.5,7.769]
[1749057004508,3.44,2648.1,2647.5,7.769]
[1749057004793,3.44,2648.1,2647.7,10.0]
[1749057005097,3.44,2648.1,2647.6,6.081816]
[1749057005098,3.44,2648.4,2647.5,7.769]
[1749057005803,0.55,2648.1,2647.6,7.77]
[1749057008045,0.55,2647.9,2647.3,8.144]
[1749057008192,2.0362,2647.8,2647.7,1.603]
[1749057009534,0.55,2647.7,2647.3,8.144]
[1749057009841,0.55,2647.7,2647.4,7.77]
[1749057010910,9.0206418,2647.6,2647.5,1.603]
[1749057011111,9.0206418,2647.6,2647.5,7.77]
[1749057012093,1.3654,2647.6,2647.5,7.77]
[1749057013718,4.8054,2647.6,2647.5,7.77]
[1749057013901,3.44,2647.6,2647.5,7.77]
[1749057014840,3.44,2647.6,2647.5,1.603]
[1749057015135,1.3869,2647.6,2647.5,7.77]
[1749057015307,1.3869,2647.6,2647.5,1.603]
[1749057015505,1.3869,2647.6,2647.5,7.771]
[1749057017827,0.55,2647.5,2647.3,8.144]
[1749057017998,3.99,2647.4,2647.3,8.144]
[1749057018206,3.99,2647.4,2647.3,9.747]
[1749057018607,0.55,2647.3,2645.8,32.26773683]
[1749057018917,3.44,2647.2,2646.1,16.0]
[1749057019144,3.44,2647.2,2646.2,21.555093]
[1749057019743,3.44,2647.2,2646.3,6.169]
[1749057019946,3.44,2647.2,2646.4,15.35047]
[1749057020244,3.44,2647.2,2646.5,1.603]
[1749057020605,3.44,2647.2,2646.5,11.603]
[1749057020951,3.44,2647.2,2646.5,1.603]
[1749057021150,2.4177,2647.1,2646.6,1.603]
[1749057021323,2.4177,2647.1,2646.7,7.77]
[1749057021645,2.4177,2647.1,2646.8,1.603]
[1749057022027,2.4177,2647.1,2646.9,6.167]
[1749057022750,2.4177,2647.1,2645.8,16.0]
[1749057023050,2.4177,2647.1,2645.7,30.0]
[1749057023051,2.4177,2647.1,2646.1,16.0]
[1749057023210,2.4177,2647.1,2646.1,10.142774]
[1749057023742,3.44,2647.0,2646.1,10.142774]
[1749057023942,1.3618,2647.3,2646.2,7.1052418]
[1749057024164,1.3618,2647.6,2646.4,2.26719056]
[1749057024464,1.3618,2647.6,2646.6,20.69911]
[1749057024644,1.3618,2647.6,2646.7,16.265555]
[1749057024940,1.3618,2647.6,2646.6,21.623488]
[1749057025146,1.3618,2647.6,2646.7,20.474234]
[1749057025640,1.3618,2647.6,2646.6,30.0]
[1749057027539,1.3618,2647.6,2646.8,17.533792]
[1749057028657,1.3618,2647.6,2646.8,10.93748]
[1749057028958,1.3618,2647.6,2646.9,6.168]
[1749057031162,1.3618,2647.6,2647.0,1.603]
[1749057032228,1.3618,2647.6,2647.1,6.168]
[1749057033366,4.01,2647.9,2647.1,6.168]
[1749057033367,1.4077,2647.9,2647.2,14.32535]
[1749057033567,1.4077,2647.9,2647.3,10.0]
[1749057033790,1.4077,2647.9,2647.2,11.663234]
[1749057034237,1.4077,2647.9,2647.3,10.0]
[1749057034437,1.4077,2647.9,2647.2,10.0]
[1749057034689,1.4077,2647.9,2647.3,10.0]
[1749057034844,1.4077,2647.9,2647.2,10.0]
[1749057035474,1.4077,2647.9,2647.3,10.0]
[1749057035745,1.4077,2647.9,2647.2,16.187048]
[1749057035945,1.4077,2647.9,2647.2,11.989693]
[1749057036379,1.4077,2647.9,2647.3,10.0]
[1749057036541,1.4077,2647.9,2647.2,14.837704]
[1749057036739,1.4077,2647.9,2647.2,19.710943]
[1749057036969,1.4077,2647.9,2647.3,10.0]
[1749057037187,1.4077,2647.9,2647.2,17.190943]
[1749057037485,1.4077,2647.9,2647.3,18.145]
[1749057037659,1.4077,2647.9,2647.3,8.145]
[1749057038884,0.55,2647.8,2647.4,6.167]
[1749057039060,1.4101,2647.7,2647.4,6.167]
[1749057042388,0.02,2647.9,2647.4,6.167]
[1749057043375,3.44,2647.8,2647.4,6.167]
[1749057044854,3.44,2647.8,2647.5,6.167]
[1749057045054,3.44,2647.8,2647.6,1.603]
[1749057046296,1.317,2647.7,2647.3,8.145]
[1749057046473,3.75943366,2647.6,2647.3,8.145]
[1749057046660,1.3921,2647.5,2647.4,7.77]
[1749057046857,1.3921,2647.5,2647.3,8.145]
[1749057047096,4.30505337,2647.8,2647.3,8.145]
[1749057047097,5.70473366,2647.4,2647.3,8.145]
[1749057047298,6.27520703,2647.4,2647.3,15.915]
[1749057047792,9.71520703,2647.4,2647.3,9.748]
[1749057049484,5.95577337,2647.4,2647.3,9.748]